[Event "Titled Tuesday Blitz March 21 Early 2023"]
[White "Hercegovac, Neven"]
[Black "Rottenwohrer Suarez, Juan"]
[WhiteFideId "2839135"]
[BlackFideId "32068182"]
[WhiteElo "2075"]
[BlackElo "2174"]
[Result "0-1"]
[Round "03"]
[TimeControl "180+2"]
[Date "2023.03.21"]
[WhiteClock "0:01:08"]
[BlackClock "0:00:08"]

1. d4 {[%clk 0:03:00]}  Nf6 {[%clk 0:00:52]} 2. c4 {[%clk 0:02:58]}  c6 {[%clk 0:00:50]} 3. Nc3 {[%clk 0:02:54]}  d5 {[%clk 0:00:50]} 4. Nf3 {[%clk 0:02:51]}  dxc4 {[%clk 0:00:49]} 5. a4 {[%clk 0:02:18]}  Bf5 {[%clk 0:00:45]} 6. Ne5 {[%clk 0:02:15]}  e6 {[%clk 0:00:44]} 7. Nxc4 {[%clk 0:02:15]}  Bb4 {[%clk 0:00:42]} 8. f3 {[%clk 0:02:15]}  O-O {[%clk 0:00:35]} 9. e4 {[%clk 0:02:15]}  Bg6 {[%clk 0:00:19]} 10. Be3 {[%clk 0:02:13]}  Nbd7 {[%clk 0:00:19]} 11. Bd3 {[%clk 0:02:13]}  a5 {[%clk 0:00:19]} 12. Qe2 {[%clk 0:02:07]}  Qe7 {[%clk 0:00:20]} 13. g4 {[%clk 0:02:05]}  e5 {[%clk 0:00:20]} 14. h4 {[%clk 0:02:03]}  h5 {[%clk 0:00:17]} 15. g5 {[%clk 0:02:03]}  Ne8 {[%clk 0:00:16]} 16. O-O {[%clk 0:01:56]}  exd4 {[%clk 0:00:15]} 17. Bxd4 {[%clk 0:01:57]}  Bc5 {[%clk 0:00:16]} 18. Qf2 {[%clk 0:01:56]}  Bxd4 {[%clk 0:00:16]} 19. Qxd4 {[%clk 0:01:57]}  Qc5 {[%clk 0:00:15]} 20. Qxc5 {[%clk 0:01:57]}  Nxc5 {[%clk 0:00:16]} 21. Be2 {[%clk 0:01:57]}  Nc7 {[%clk 0:00:16]} 22. f4 {[%clk 0:01:56]}  Bxe4 {[%clk 0:00:16]} 23. Nd6 {[%clk 0:01:51]}  Bd3 {[%clk 0:00:11]} 24. Bxd3 {[%clk 0:01:48]}  Nxd3 {[%clk 0:00:12]} 25. Rf3 {[%clk 0:01:44]}  Nc5 {[%clk 0:00:09]} 26. Re1 {[%clk 0:01:41]}  Rad8 {[%clk 0:00:10]} 27. Nf5 {[%clk 0:01:40]}  g6 {[%clk 0:00:09]} 28. Ne3 {[%clk 0:01:34]}  Rfe8 {[%clk 0:00:09]} 29. Kf1 {[%clk 0:01:30]}  Rd4 {[%clk 0:00:09]} 30. Nc2 {[%clk 0:01:28]}  Rxe1+ {[%clk 0:00:08]} 31. Kxe1 {[%clk 0:01:29]}  Rxf4 {[%clk 0:00:08]} 32. Re3 {[%clk 0:01:23]}  Nxa4 {[%clk 0:00:07]} 33. Nxa4 {[%clk 0:01:22]}  Rxa4 {[%clk 0:00:08]} 34. Re7 {[%clk 0:01:22]}  Nd5 {[%clk 0:00:09]} 35. Rxb7 {[%clk 0:01:22]}  Rxh4 {[%clk 0:00:09]} 36. Rb8+ {[%clk 0:01:19]}  Kg7 {[%clk 0:00:09]} 37. Ra8 {[%clk 0:01:20]}  Rg4 {[%clk 0:00:09]} 38. Rxa5 {[%clk 0:01:20]}  Rxg5 {[%clk 0:00:10]} 39. Nd4 {[%clk 0:01:18]}  Re5+ {[%clk 0:00:10]} 40. Kd2 {[%clk 0:01:17]}  h4 {[%clk 0:00:06]} 41. Nxc6 {[%clk 0:01:16]}  Rg5 {[%clk 0:00:07]} 42. Ra3 {[%clk 0:01:14]}  Rg2+ {[%clk 0:00:06]} 43. Ke1 {[%clk 0:01:13]}  Rxb2 {[%clk 0:00:06]} 44. Rh3 {[%clk 0:01:12]}  g5 {[%clk 0:00:06]} 45. Ne5 {[%clk 0:01:12]}  Rb1+ {[%clk 0:00:06]} 46. Kf2 {[%clk 0:01:11]}  Nf4 {[%clk 0:00:06]} 47. Rf3 {[%clk 0:01:10]}  f6 {[%clk 0:00:06]} 48. Nd3 {[%clk 0:01:08]}  Nxd3+ {[%clk 0:00:06]} 49. Rxd3 {[%clk 0:01:09]}  Rb2+ {[%clk 0:00:06]} 50. Kf3 {[%clk 0:01:09]}  Kg6 {[%clk 0:00:07]} 51. Kg4 {[%clk 0:01:10]}  Rb4+ {[%clk 0:00:05]} 52. Kh3 {[%clk 0:01:11]}  Rf4 {[%clk 0:00:05]} 53. Rc3 {[%clk 0:01:09]}  Kh5 {[%clk 0:00:05]} 54. Rd3 {[%clk 0:01:09]}  f5 {[%clk 0:00:04]} 55. Rd8 {[%clk 0:01:08]}  g4+ {[%clk 0:00:04]} 56. Kg2 {[%clk 0:01:08]}  Rf3 {[%clk 0:00:05]} 57. Rh8+ {[%clk 0:01:08]}  Kg5 {[%clk 0:00:06]} 58. Rg8+ {[%clk 0:01:09]}  Kf4 {[%clk 0:00:06]} 59. Ra8 {[%clk 0:01:10]}  h3+ {[%clk 0:00:07]} 60. Kg1 {[%clk 0:01:10]}  Kg3 {[%clk 0:00:07]} 61. Ra1 {[%clk 0:01:10]}  f4 {[%clk 0:00:06]} 62. Kh1 {[%clk 0:01:10]}  Kh4 {[%clk 0:00:05]} 63. Kg1 {[%clk 0:01:10]}  g3 {[%clk 0:00:06]} 64. Ra8 {[%clk 0:01:09]}  h2+ {[%clk 0:00:06]} 65. Kg2 {[%clk 0:01:07]}  Rf2+ {[%clk 0:00:07]} 66. Kh1 {[%clk 0:01:08]}  Rf1+ {[%clk 0:00:07]} 67. Kg2 {[%clk 0:01:08]}  h1=Q# {[%clk 0:00:08]} 0-1


[Site "https://www.chess.com"]

[Event "Titled Tuesday Blitz March 21 Early 2023"]
[White "Botez, Alexandra"]
[Black "Omariev, Maksim"]
[WhiteFideId "2603365"]
[BlackFideId "4193423"]
[WhiteElo "2059"]
[BlackElo "2463"]
[Result "1-0"]
[Round "03"]
[TimeControl "180+2"]
[Date "2023.03.21"]
[WhiteClock "0:00:05"]
[BlackClock "0:00:01"]

1. d4 {[%clk 0:03:00]}  h5 {[%clk 0:01:55]} 2. c4 {[%clk 0:02:48]}  h4 {[%clk 0:01:47]} 3. Nc3 {[%clk 0:02:39]}  d6 {[%clk 0:01:45]} 4. h3 {[%clk 0:02:39]}  e5 {[%clk 0:01:44]} 5. Nf3 {[%clk 0:02:25]}  Nc6 {[%clk 0:01:41]} 6. d5 {[%clk 0:01:55]}  Nb8 {[%clk 0:01:32]} 7. Bg5 {[%clk 0:01:53]}  Be7 {[%clk 0:01:32]} 8. Qd2 {[%clk 0:01:37]}  Nd7 {[%clk 0:01:30]} 9. e4 {[%clk 0:01:19]}  Bxg5 {[%clk 0:01:24]} 10. Nxg5 {[%clk 0:01:15]}  a5 {[%clk 0:01:22]} 11. Be2 {[%clk 0:01:13]}  Ne7 {[%clk 0:01:17]} 12. Bg4 {[%clk 0:01:10]}  Ng6 {[%clk 0:01:11]} 13. O-O-O {[%clk 0:00:50]}  Nf4 {[%clk 0:01:05]} 14. g3 {[%clk 0:00:43]}  Qxg5 {[%clk 0:01:00]} 15. gxf4 {[%clk 0:00:44]}  Qxf4 {[%clk 0:01:01]} 16. f3 {[%clk 0:00:39]}  Qxd2+ {[%clk 0:00:52]} 17. Rxd2 {[%clk 0:00:39]}  Nc5 {[%clk 0:00:53]} 18. Nb5 {[%clk 0:00:36]}  Kd8 {[%clk 0:00:42]} 19. Bxc8 {[%clk 0:00:33]}  Rxc8 {[%clk 0:00:40]} 20. Rg1 {[%clk 0:00:34]}  g6 {[%clk 0:00:37]} 21. b3 {[%clk 0:00:34]}  Ke7 {[%clk 0:00:36]} 22. Kc2 {[%clk 0:00:34]}  Rhd8 {[%clk 0:00:25]} 23. Rdg2 {[%clk 0:00:34]}  c6 {[%clk 0:00:24]} 24. Nc3 {[%clk 0:00:34]}  Rh8 {[%clk 0:00:20]} 25. Rg4 {[%clk 0:00:34]}  Rh5 {[%clk 0:00:20]} 26. Ra1 {[%clk 0:00:28]}  Nd7 {[%clk 0:00:17]} 27. a3 {[%clk 0:00:27]}  Nf6 {[%clk 0:00:16]} 28. Rg2 {[%clk 0:00:27]}  Nh7 {[%clk 0:00:17]} 29. b4 {[%clk 0:00:27]}  Ng5 {[%clk 0:00:16]} 30. bxa5 {[%clk 0:00:18]}  Nxh3 {[%clk 0:00:14]} 31. Rb1 {[%clk 0:00:19]}  Rc7 {[%clk 0:00:13]} 32. dxc6 {[%clk 0:00:16]}  bxc6 {[%clk 0:00:13]} 33. a6 {[%clk 0:00:17]}  Nf4 {[%clk 0:00:12]} 34. Rb7 {[%clk 0:00:15]}  Kd7 {[%clk 0:00:05]} 35. a7 {[%clk 0:00:09]}  Rh8 {[%clk 0:00:06]} 36. Rxc7+ {[%clk 0:00:05]}  Kxc7 {[%clk 0:00:06]} 37. Rd2 {[%clk 0:00:06]}  Ra8 {[%clk 0:00:04]} 38. Rh2 {[%clk 0:00:05]}  h3 {[%clk 0:00:03]} 39. Ne2 {[%clk 0:00:04]}  Nxe2 {[%clk 0:00:03]} 40. Rxe2 {[%clk 0:00:05]}  Kb7 {[%clk 0:00:03]} 41. Kb3 {[%clk 0:00:05]}  Rh8 {[%clk 0:00:03]} 42. Rh2 {[%clk 0:00:06]}  Kxa7 {[%clk 0:00:04]} 43. Kb4 {[%clk 0:00:07]}  Kb6 {[%clk 0:00:03]} 44. a4 {[%clk 0:00:08]}  c5+ {[%clk 0:00:03]} 45. Kb3 {[%clk 0:00:07]}  f5 {[%clk 0:00:03]} 46. Kc3 {[%clk 0:00:07]}  Ka5 {[%clk 0:00:03]} 47. Kb3 {[%clk 0:00:06]}  Rh4 {[%clk 0:00:01]} 48. exf5 {[%clk 0:00:05]} 1-0


[Site "https://www.chess.com"]

[Event "Titled Tuesday Blitz March 21 Early 2023"]
[White "Shukhman, Anna"]
[Black "Wahedi, Ahmad Siar"]
[WhiteFideId "54180058"]
[BlackFideId "4651260"]
[WhiteElo "2125"]
[BlackElo "2453"]
[Result "0-1"]
[Round "03"]
[TimeControl "180+2"]
[Date "2023.03.21"]
[WhiteClock "0:00:11"]
[BlackClock "0:00:46"]

1. e4 {[%clk 0:03:00]}  c5 {[%clk 0:02:58]} 2. Nf3 {[%clk 0:02:59]}  Nc6 {[%clk 0:02:58]} 3. Bb5 {[%clk 0:02:58]}  Nd4 {[%clk 0:02:57]} 4. Nxd4 {[%clk 0:02:57]}  cxd4 {[%clk 0:02:58]} 5. O-O {[%clk 0:02:56]}  e6 {[%clk 0:02:55]} 6. d3 {[%clk 0:02:54]}  g6 {[%clk 0:02:52]} 7. f4 {[%clk 0:02:48]}  Bg7 {[%clk 0:02:50]} 8. f5 {[%clk 0:02:42]}  a6 {[%clk 0:02:41]} 9. Ba4 {[%clk 0:02:36]}  b5 {[%clk 0:02:41]} 10. Bb3 {[%clk 0:02:35]}  Bb7 {[%clk 0:02:41]} 11. Nd2 {[%clk 0:02:32]}  Qe7 {[%clk 0:02:40]} 12. Nf3 {[%clk 0:02:29]}  h6 {[%clk 0:02:28]} 13. a4 {[%clk 0:02:25]}  gxf5 {[%clk 0:02:24]} 14. exf5 {[%clk 0:02:23]}  e5 {[%clk 0:02:24]} 15. Re1 {[%clk 0:02:21]}  Qd6 {[%clk 0:02:21]} 16. Bf4 {[%clk 0:02:14]}  f6 {[%clk 0:02:20]} 17. axb5 {[%clk 0:02:03]}  axb5 {[%clk 0:02:19]} 18. Rxa8+ {[%clk 0:01:50]}  Bxa8 {[%clk 0:02:20]} 19. Qa1 {[%clk 0:01:26]}  Bc6 {[%clk 0:02:18]} 20. Bxg8 {[%clk 0:01:05]}  Rxg8 {[%clk 0:02:16]} 21. Nd2 {[%clk 0:01:01]}  Kf7 {[%clk 0:02:12]} 22. Bg3 {[%clk 0:00:58]}  Ra8 {[%clk 0:02:11]} 23. Qd1 {[%clk 0:00:58]}  Qc5 {[%clk 0:02:02]} 24. Qh5+ {[%clk 0:00:58]}  Kf8 {[%clk 0:02:02]} 25. Bxe5 {[%clk 0:00:40]}  fxe5 {[%clk 0:01:41]} 26. f6 {[%clk 0:00:39]}  Bxf6 {[%clk 0:01:41]} 27. Rf1 {[%clk 0:00:36]}  Ke7 {[%clk 0:01:40]} 28. Qxh6 {[%clk 0:00:36]}  Rf8 {[%clk 0:01:39]} 29. Nf3 {[%clk 0:00:24]}  Bxf3 {[%clk 0:01:38]} 30. Rxf3 {[%clk 0:00:25]}  Qxc2 {[%clk 0:01:37]} 31. Qh7+ {[%clk 0:00:20]}  Rf7 {[%clk 0:01:37]} 32. Qe4 {[%clk 0:00:20]}  Qd1+ {[%clk 0:01:33]} 33. Rf1 {[%clk 0:00:20]}  Qd2 {[%clk 0:01:31]} 34. Qd5 {[%clk 0:00:20]}  Rf8 {[%clk 0:01:26]} 35. Qc5+ {[%clk 0:00:20]}  d6 {[%clk 0:01:22]} 36. Qc7+ {[%clk 0:00:20]}  Ke6 {[%clk 0:01:22]} 37. Qa7 {[%clk 0:00:17]}  Qe3+ {[%clk 0:01:20]} 38. Kh1 {[%clk 0:00:16]}  Be7 {[%clk 0:01:14]} 39. Qa2+ {[%clk 0:00:16]}  d5 {[%clk 0:01:14]} 40. Qa6+ {[%clk 0:00:15]}  Bd6 {[%clk 0:01:14]} 41. Rg1 {[%clk 0:00:16]}  Qxd3 {[%clk 0:01:11]} 42. Qc6 {[%clk 0:00:14]}  e4 {[%clk 0:01:10]} 43. Qc1 {[%clk 0:00:13]}  e3 {[%clk 0:01:10]} 44. Qe1 {[%clk 0:00:13]}  Qh7 {[%clk 0:01:08]} 45. h3 {[%clk 0:00:13]}  Qe4 {[%clk 0:01:06]} 46. Qe2 {[%clk 0:00:12]}  d3 {[%clk 0:01:05]} 47. Qh5 {[%clk 0:00:12]}  d2 {[%clk 0:01:04]} 48. Qh6+ {[%clk 0:00:13]}  Kd7 {[%clk 0:01:04]} 49. Qg7+ {[%clk 0:00:12]}  Kc6 {[%clk 0:01:03]} 50. Ra1 {[%clk 0:00:12]}  d1=Q+ {[%clk 0:00:47]} 51. Rxd1 {[%clk 0:00:12]}  e2 {[%clk 0:00:48]} 52. Rc1+ {[%clk 0:00:12]}  Kb6 {[%clk 0:00:47]} 53. Qc3 {[%clk 0:00:11]}  Rf1+ {[%clk 0:00:46]} 0-1


[Site "https://www.chess.com"]

[Event "Titled Tuesday Blitz March 21 Early 2023"]
[White "Tsotsonava, Elene"]
[Black "Tomaszewski, Kacper"]
[WhiteFideId "13615939"]
[BlackFideId "1127373"]
[WhiteElo "1829"]
[BlackElo "2211"]
[Result "1-0"]
[Round "03"]
[TimeControl "180+2"]
[Date "2023.03.21"]
[WhiteClock "0:00:11"]
[BlackClock "0:00:06"]

1. Nf3 {[%clk 0:02:56]}  d5 {[%clk 0:02:58]} 2. c4 {[%clk 0:02:49]}  c6 {[%clk 0:02:57]} 3. b3 {[%clk 0:02:48]}  Bf5 {[%clk 0:02:48]} 4. e3 {[%clk 0:02:48]}  h6 {[%clk 0:02:48]} 5. Bb2 {[%clk 0:02:46]}  e6 {[%clk 0:02:47]} 6. Be2 {[%clk 0:02:44]}  Nf6 {[%clk 0:02:47]} 7. O-O {[%clk 0:02:43]}  Nbd7 {[%clk 0:02:45]} 8. d3 {[%clk 0:02:42]}  Be7 {[%clk 0:02:44]} 9. Nbd2 {[%clk 0:02:42]}  O-O {[%clk 0:02:43]} 10. a3 {[%clk 0:02:42]}  Bh7 {[%clk 0:02:41]} 11. b4 {[%clk 0:02:42]}  dxc4 {[%clk 0:02:38]} 12. Nxc4 {[%clk 0:02:41]}  Qc7 {[%clk 0:02:29]} 13. Qb3 {[%clk 0:02:39]}  a6 {[%clk 0:02:27]} 14. Rac1 {[%clk 0:02:36]}  Rac8 {[%clk 0:02:26]} 15. Rfd1 {[%clk 0:02:22]}  Rfd8 {[%clk 0:02:23]} 16. Nfe5 {[%clk 0:02:21]}  Qb8 {[%clk 0:02:12]} 17. Nxd7 {[%clk 0:02:16]}  Nxd7 {[%clk 0:02:12]} 18. Bf3 {[%clk 0:02:14]}  Bf6 {[%clk 0:02:09]} 19. Bxf6 {[%clk 0:02:14]}  Nxf6 {[%clk 0:02:09]} 20. d4 {[%clk 0:02:15]}  Be4 {[%clk 0:02:04]} 21. Bxe4 {[%clk 0:02:13]}  Nxe4 {[%clk 0:02:04]} 22. f3 {[%clk 0:02:12]}  Nd6 {[%clk 0:02:02]} 23. Ne5 {[%clk 0:02:11]}  Ne8 {[%clk 0:01:50]} 24. Rc4 {[%clk 0:01:44]}  Nf6 {[%clk 0:01:49]} 25. Rdc1 {[%clk 0:01:44]}  Nd7 {[%clk 0:01:48]} 26. Nd3 {[%clk 0:01:42]}  Qd6 {[%clk 0:01:46]} 27. a4 {[%clk 0:01:38]}  Ra8 {[%clk 0:01:44]} 28. R4c2 {[%clk 0:01:35]}  Kf8 {[%clk 0:01:40]} 29. Nc5 {[%clk 0:01:34]}  Nxc5 {[%clk 0:01:36]} 30. bxc5 {[%clk 0:01:34]}  Qc7 {[%clk 0:01:36]} 31. Rb1 {[%clk 0:01:34]}  Rd7 {[%clk 0:01:34]} 32. Rcb2 {[%clk 0:01:32]}  Ra7 {[%clk 0:01:27]} 33. Qc3 {[%clk 0:01:31]}  Re7 {[%clk 0:01:25]} 34. f4 {[%clk 0:01:30]}  Qd8 {[%clk 0:01:22]} 35. Rb6 {[%clk 0:01:25]}  Kg8 {[%clk 0:01:17]} 36. R1b3 {[%clk 0:01:25]}  Kh7 {[%clk 0:01:17]} 37. Qc2+ {[%clk 0:01:24]}  g6 {[%clk 0:01:17]} 38. h3 {[%clk 0:01:25]}  h5 {[%clk 0:01:17]} 39. Rb1 {[%clk 0:01:17]}  Qd5 {[%clk 0:01:16]} 40. Kf2 {[%clk 0:01:17]}  Qf5 {[%clk 0:01:11]} 41. Qc3 {[%clk 0:01:00]}  h4 {[%clk 0:01:01]} 42. Kg1 {[%clk 0:00:55]}  Qe4 {[%clk 0:00:57]} 43. Qe1 {[%clk 0:00:54]}  Kg7 {[%clk 0:00:51]} 44. R1b3 {[%clk 0:00:52]}  g5 {[%clk 0:00:43]} 45. fxg5 {[%clk 0:00:52]}  Kg6 {[%clk 0:00:43]} 46. R6b4 {[%clk 0:00:46]}  a5 {[%clk 0:00:34]} 47. Rb6 {[%clk 0:00:43]}  Kxg5 {[%clk 0:00:33]} 48. Qf2 {[%clk 0:00:40]}  Qf5 {[%clk 0:00:30]} 49. Qd2 {[%clk 0:00:39]}  Kg6 {[%clk 0:00:28]} 50. Rb1 {[%clk 0:00:38]}  e5 {[%clk 0:00:22]} 51. Rf1 {[%clk 0:00:36]}  Qg5 {[%clk 0:00:22]} 52. d5 {[%clk 0:00:32]}  Rd7 {[%clk 0:00:20]} 53. d6 {[%clk 0:00:31]}  Kg7 {[%clk 0:00:20]} 54. Qc3 {[%clk 0:00:29]}  Ra8 {[%clk 0:00:20]} 55. Rb2 {[%clk 0:00:24]}  Rg8 {[%clk 0:00:20]} 56. e4 {[%clk 0:00:24]}  Kf8 {[%clk 0:00:17]} 57. Rf5 {[%clk 0:00:23]}  Qg3 {[%clk 0:00:16]} 58. Rc2 {[%clk 0:00:15]}  Qxc3 {[%clk 0:00:15]} 59. Rxc3 {[%clk 0:00:16]}  Rh8 {[%clk 0:00:10]} 60. Kf2 {[%clk 0:00:15]}  Rh6 {[%clk 0:00:08]} 61. Rb3 {[%clk 0:00:15]}  Re6 {[%clk 0:00:08]} 62. Kf3 {[%clk 0:00:12]}  Kg7 {[%clk 0:00:08]} 63. Rg5+ {[%clk 0:00:10]}  Rg6 {[%clk 0:00:08]} 64. Rxe5 {[%clk 0:00:10]}  f6 {[%clk 0:00:05]} 65. Rf5 {[%clk 0:00:10]}  Kf7 {[%clk 0:00:05]} 66. e5 {[%clk 0:00:09]}  Ke6 {[%clk 0:00:05]} 67. Rxf6+ {[%clk 0:00:10]}  Rxf6+ {[%clk 0:00:05]} 68. exf6 {[%clk 0:00:11]}  Kxf6 {[%clk 0:00:06]} 69. Kg4 {[%clk 0:00:12]}  Ke5 {[%clk 0:00:07]} 70. Kxh4 {[%clk 0:00:11]}  Kd5 {[%clk 0:00:07]} 71. Rc3 {[%clk 0:00:12]}  Kd4 {[%clk 0:00:08]} 72. Rc1 {[%clk 0:00:12]}  Rh7+ {[%clk 0:00:08]} 73. Kg3 {[%clk 0:00:12]}  Rg7+ {[%clk 0:00:08]} 74. Kh2 {[%clk 0:00:13]}  b5 {[%clk 0:00:06]} 75. axb5 {[%clk 0:00:10]}  cxb5 {[%clk 0:00:06]} 76. c6 {[%clk 0:00:11]}  b4 {[%clk 0:00:06]} 77. c7 {[%clk 0:00:11]} 1-0


[Site "https://www.chess.com"]

[Event "Titled Tuesday Blitz March 21 Early 2023"]
[White "Dudzinski, Pawel"]
[Black "Lakshmi C"]
[WhiteFideId "1117890"]
[BlackFideId "25035347"]
[WhiteElo "2099"]
[BlackElo "1942"]
[Result "1-0"]
[Round "03"]
[TimeControl "180+2"]
[Date "2023.03.21"]
[WhiteClock "0:00:20"]
[BlackClock "0:00:08"]

1. e4 {[%clk 0:02:59]}  c5 {[%clk 0:02:59]} 2. Nc3 {[%clk 0:02:57]}  Nc6 {[%clk 0:02:59]} 3. g3 {[%clk 0:02:57]}  g6 {[%clk 0:02:59]} 4. d3 {[%clk 0:02:54]}  Bg7 {[%clk 0:02:59]} 5. Be3 {[%clk 0:02:55]}  d6 {[%clk 0:02:59]} 6. Qd2 {[%clk 0:02:52]}  Nf6 {[%clk 0:02:58]} 7. h3 {[%clk 0:02:51]}  h5 {[%clk 0:02:57]} 8. Bg2 {[%clk 0:02:50]}  Nd4 {[%clk 0:02:35]} 9. Nd1 {[%clk 0:02:45]}  e5 {[%clk 0:01:57]} 10. c3 {[%clk 0:02:42]}  Ne6 {[%clk 0:01:56]} 11. Ne2 {[%clk 0:02:43]}  d5 {[%clk 0:01:43]} 12. O-O {[%clk 0:02:03]}  d4 {[%clk 0:01:34]} 13. cxd4 {[%clk 0:02:03]}  cxd4 {[%clk 0:01:33]} 14. Bg5 {[%clk 0:02:03]}  Nxg5 {[%clk 0:01:31]} 15. Qxg5 {[%clk 0:02:04]}  Bh6 {[%clk 0:01:30]} 16. Qxe5+ {[%clk 0:02:03]}  Kf8 {[%clk 0:01:26]} 17. Qxd4 {[%clk 0:01:59]}  Qe7 {[%clk 0:01:26]} 18. Nf4 {[%clk 0:01:20]}  Bg7 {[%clk 0:01:14]} 19. Rc1 {[%clk 0:01:13]}  g5 {[%clk 0:01:02]} 20. Ne2 {[%clk 0:01:02]}  Kg8 {[%clk 0:00:38]} 21. Ne3 {[%clk 0:00:50]}  Nd7 {[%clk 0:00:33]} 22. Qxg7+ {[%clk 0:00:46]}  Kxg7 {[%clk 0:00:32]} 23. Nf5+ {[%clk 0:00:47]}  Kf8 {[%clk 0:00:33]} 24. Nxe7 {[%clk 0:00:48]}  Kxe7 {[%clk 0:00:33]} 25. f4 {[%clk 0:00:45]}  f6 {[%clk 0:00:32]} 26. d4 {[%clk 0:00:43]}  Nb6 {[%clk 0:00:25]} 27. Kh2 {[%clk 0:00:42]}  Bd7 {[%clk 0:00:24]} 28. d5 {[%clk 0:00:41]}  Rac8 {[%clk 0:00:23]} 29. e5 {[%clk 0:00:40]}  Bb5 {[%clk 0:00:18]} 30. d6+ {[%clk 0:00:40]}  Kf7 {[%clk 0:00:16]} 31. Bxb7 {[%clk 0:00:23]}  Rxc1 {[%clk 0:00:14]} 32. Rxc1 {[%clk 0:00:23]}  Bxe2 {[%clk 0:00:13]} 33. Rc7+ {[%clk 0:00:24]}  Ke6 {[%clk 0:00:12]} 34. Re7+ {[%clk 0:00:24]}  Kf5 {[%clk 0:00:11]} 35. e6 {[%clk 0:00:22]}  gxf4 {[%clk 0:00:10]} 36. gxf4 {[%clk 0:00:21]}  Rg8 {[%clk 0:00:08]} 37. d7 {[%clk 0:00:20]} 1-0


[Site "https://www.chess.com"]

[Event "Titled Tuesday Blitz March 21 Early 2023"]
[White "Bas Mas, Jose Joaquin"]
[Black "Barria Santos, Jose Guilherme"]
[WhiteFideId "22219064"]
[BlackFideId "1939300"]
[WhiteElo "2233"]
[BlackElo "2301"]
[Result "1-0"]
[Round "03"]
[TimeControl "180+2"]
[Date "2023.03.21"]
[WhiteClock "0:01:59"]
[BlackClock "0:02:13"]

1. e4 {[%clk 0:03:00]}  c5 {[%clk 0:03:00]} 2. Nc3 {[%clk 0:02:59]}  d6 {[%clk 0:03:00]} 3. f4 {[%clk 0:02:58]}  g6 {[%clk 0:03:00]} 4. Nf3 {[%clk 0:02:58]}  Bg7 {[%clk 0:03:00]} 5. Bb5+ {[%clk 0:02:59]}  Bd7 {[%clk 0:03:00]} 6. Bc4 {[%clk 0:02:59]}  a6 {[%clk 0:02:58]} 7. O-O {[%clk 0:02:57]}  e6 {[%clk 0:02:58]} 8. d3 {[%clk 0:02:54]}  Ne7 {[%clk 0:02:58]} 9. f5 {[%clk 0:02:51]}  exf5 {[%clk 0:02:42]} 10. Qe1 {[%clk 0:02:49]}  O-O {[%clk 0:02:42]} 11. Qh4 {[%clk 0:02:37]}  b5 {[%clk 0:02:34]} 12. Ng5 {[%clk 0:02:14]}  h6 {[%clk 0:02:29]} 13. Nxf7 {[%clk 0:02:13]}  Rxf7 {[%clk 0:02:21]} 14. Bxf7+ {[%clk 0:02:12]}  Kxf7 {[%clk 0:02:21]} 15. exf5 {[%clk 0:02:01]}  Nxf5 {[%clk 0:02:13]} 16. Qxd8 {[%clk 0:01:59]} 1-0


[Site "https://www.chess.com"]

[Event "Titled Tuesday Blitz March 21 Early 2023"]
[White "Chernov, Mikhail"]
[Black "victormago"]
[WhiteFideId "24143170"]
[WhiteElo "2113"]
[BlackElo "2226"]
[Result "0-1"]
[Round "03"]
[TimeControl "180+2"]
[Date "2023.03.21"]
[WhiteClock "0:00:51"]
[BlackClock "0:00:46"]

1. d4 {[%clk 0:03:00]}  Nf6 {[%clk 0:02:59]} 2. Nc3 {[%clk 0:03:01]}  d5 {[%clk 0:02:58]} 3. Bf4 {[%clk 0:03:01]}  c6 {[%clk 0:02:52]} 4. e3 {[%clk 0:03:02]}  Bf5 {[%clk 0:02:48]} 5. Nf3 {[%clk 0:03:02]}  h6 {[%clk 0:02:46]} 6. Ne5 {[%clk 0:03:01]}  Nbd7 {[%clk 0:02:45]} 7. g4 {[%clk 0:02:53]}  Bh7 {[%clk 0:02:39]} 8. h4 {[%clk 0:02:50]}  Nxe5 {[%clk 0:02:33]} 9. dxe5 {[%clk 0:02:46]}  Ne4 {[%clk 0:02:33]} 10. e6 {[%clk 0:02:35]}  fxe6 {[%clk 0:02:29]} 11. Nxe4 {[%clk 0:02:32]}  Bxe4 {[%clk 0:02:29]} 12. f3 {[%clk 0:02:30]}  Bh7 {[%clk 0:02:23]} 13. Bd3 {[%clk 0:02:30]}  Bxd3 {[%clk 0:02:23]} 14. Qxd3 {[%clk 0:02:31]}  Qa5+ {[%clk 0:02:22]} 15. b4 {[%clk 0:02:18]}  Qxb4+ {[%clk 0:02:17]} 16. c3 {[%clk 0:02:18]}  Qb2 {[%clk 0:02:17]} 17. Qg6+ {[%clk 0:02:18]}  Kd7 {[%clk 0:02:17]} 18. O-O {[%clk 0:02:19]}  Qxc3 {[%clk 0:02:14]} 19. Rab1 {[%clk 0:02:15]}  b6 {[%clk 0:02:11]} 20. Rbc1 {[%clk 0:02:07]}  Qf6 {[%clk 0:02:10]} 21. Qc2 {[%clk 0:02:08]}  Rc8 {[%clk 0:02:04]} 22. Qa4 {[%clk 0:02:07]}  a5 {[%clk 0:01:52]} 23. Rfd1 {[%clk 0:01:40]}  g5 {[%clk 0:01:43]} 24. Bh2 {[%clk 0:01:27]}  Qxf3 {[%clk 0:01:36]} 25. Qd4 {[%clk 0:01:17]}  Bg7 {[%clk 0:01:14]} 26. Qxg7 {[%clk 0:01:08]}  Qxg4+ {[%clk 0:01:02]} 27. Kh1 {[%clk 0:00:51]}  Qf3+ {[%clk 0:01:01]} 28. Kg1 {[%clk 0:00:51]}  Rhg8 {[%clk 0:00:46]} 0-1


[Site "https://www.chess.com"]

[Event "Titled Tuesday Blitz March 21 Early 2023"]
[White "babbilator"]
[Black "Gatterer, Florian"]
[BlackFideId "811688"]
[WhiteElo "2220"]
[BlackElo "2221"]
[Result "1/2-1/2"]
[Round "03"]
[TimeControl "180+2"]
[Date "2023.03.21"]
[WhiteClock "0:02:06"]
[BlackClock "0:02:49"]

1. e4 {[%clk 0:03:00]}  c5 {[%clk 0:03:00]} 2. Nc3 {[%clk 0:02:59]}  e6 {[%clk 0:03:00]} 3. Nf3 {[%clk 0:02:57]}  Nc6 {[%clk 0:03:00]} 4. d4 {[%clk 0:02:57]}  cxd4 {[%clk 0:03:00]} 5. Nxd4 {[%clk 0:02:58]}  Nf6 {[%clk 0:03:00]} 6. Ndb5 {[%clk 0:02:54]}  Bc5 {[%clk 0:02:59]} 7. Bf4 {[%clk 0:02:28]}  O-O {[%clk 0:02:58]} 8. Bc7 {[%clk 0:02:24]}  Qe7 {[%clk 0:02:58]} 9. Bd6 {[%clk 0:02:21]}  Bxd6 {[%clk 0:02:57]} 10. Qxd6 {[%clk 0:02:19]}  Qd8 {[%clk 0:02:57]} 11. Qc7 {[%clk 0:02:12]}  Qe7 {[%clk 0:02:51]} 12. Qd6 {[%clk 0:02:10]}  Qd8 {[%clk 0:02:50]} 13. Qc7 {[%clk 0:02:06]}  Qe7 {[%clk 0:02:49]} 14. Qd6 {[%clk 0:02:06]} 1/2-1/2


[Site "https://www.chess.com"]